[Event "Early-Titled-Tuesday-Blitz-April-16-2024"]
[Site "Chess.com"]
[Date "2024.04.16"]
[Round "6"]
[White "azikom"]
[Black "Orphanator2009"]
[Result "1-0"]
[WhiteElo "2703"]
[BlackElo "2521"]
[TimeControl "180+1"]
[EndTime "9:07:37 PDT"]
[Termination "azikom won by resignation"]

1. c4 {[%clk 0:02:59.2]} 1... Nf6 {[%clk 0:02:56.8]} 2. Nc3 {[%clk 0:02:59.6]}
2... e6 {[%clk 0:02:57.2]} 3. e4 {[%clk 0:02:59.1]} 3... d5 {[%clk 0:02:57.5]}
4. e5 {[%clk 0:02:59.4]} 4... d4 {[%clk 0:02:58]} 5. exf6 {[%clk 0:02:59.1]}
5... dxc3 {[%clk 0:02:58.5]} 6. bxc3 {[%clk 0:03:00]} 6... Qxf6 {[%clk
0:02:58.6]} 7. Nf3 {[%clk 0:03:00.2]} 7... b6 {[%clk 0:02:58.6]} 8. d4 {[%clk
0:02:57.3]} 8... Bb7 {[%clk 0:02:58.6]} 9. Be2 {[%clk 0:02:54]} 9... h6 {[%clk
0:02:57.5]} 10. O-O {[%clk 0:02:54]} 10... Bd6 {[%clk 0:02:57.7]} 11. a4 {[%clk
0:02:53.5]} 11... O-O {[%clk 0:02:57.1]} 12. a5 {[%clk 0:02:52.8]} 12... Nd7
{[%clk 0:02:55.2]} 13. Rb1 {[%clk 0:02:51]} 13... Be4 {[%clk 0:02:50.2]} 14. Rb2
{[%clk 0:02:47.2]} 14... e5 {[%clk 0:02:48.1]} 15. Be3 {[%clk 0:02:39.1]} 15...
Rfe8 {[%clk 0:02:46.3]} 16. h3 {[%clk 0:02:38.3]} 16... Rad8 {[%clk 0:02:45.7]}
17. Qa4 {[%clk 0:02:33.6]} 17... exd4 {[%clk 0:02:22.9]} 18. cxd4 {[%clk
0:02:33.2]} 18... Bc6 {[%clk 0:02:21.3]} 19. Qa2 {[%clk 0:02:25.1]} 19... Qg6
{[%clk 0:02:19.6]} 20. Rc1 {[%clk 0:02:11.9]} 20... Qf6 {[%clk 0:01:49.6]} 21.
c5 {[%clk 0:02:02.9]} 21... Bf4 {[%clk 0:01:33.7]} 22. cxb6 {[%clk 0:01:57.4]}
22... Bxe3 {[%clk 0:01:24.5]} 23. fxe3 {[%clk 0:01:54.2]} 23... cxb6 {[%clk
0:01:23.2]} 24. Rc3 {[%clk 0:01:45.6]} 24... Qd6 {[%clk 0:01:13]} 25. Qa3 {[%clk
0:01:39.1]} 25... Qxa3 {[%clk 0:01:07.4]} 26. Rxa3 {[%clk 0:01:38.8]} 26... Re7
{[%clk 0:01:07.6]} 27. Kf2 {[%clk 0:01:36]} 27... Rde8 {[%clk 0:01:02.8]} 28.
axb6 {[%clk 0:01:34.3]} 28... axb6 {[%clk 0:01:00.8]} 29. Bb5 {[%clk 0:01:32.1]}
29... Bxb5 {[%clk 0:00:48.9]} 30. Rxb5 {[%clk 0:01:33]} 30... Nf6 {[%clk
0:00:49.6]} 31. Ne5 {[%clk 0:01:30.5]} 31... Ne4+ {[%clk 0:00:35.4]} 32. Kf3
{[%clk 0:01:29.6]} 32... Nd6 {[%clk 0:00:35.7]} 33. Rxb6 {[%clk 0:01:23.9]}
33... Rxe5 {[%clk 0:00:35.3]} 34. Rxd6 {[%clk 0:01:23.2]} 34... Rf5+ {[%clk
0:00:32.3]} 35. Ke2 {[%clk 0:01:22.5]} 35... Rg5 {[%clk 0:00:32.9]} 36. g4
{[%clk 0:01:21.1]} 36... h5 {[%clk 0:00:32.9]} 37. Kf3 {[%clk 0:01:20.5]} 37...
hxg4+ {[%clk 0:00:33.4]} 38. hxg4 {[%clk 0:01:21.4]} 38... Rb5 {[%clk
0:00:31.9]} 39. Rda6 {[%clk 0:01:18.6]} 39... Rb7 {[%clk 0:00:31.9]} 40. Ra8
{[%clk 0:01:17.4]} 40... Kf8 {[%clk 0:00:31.1]} 41. Rxe8+ {[%clk 0:01:16.6]}
41... Kxe8 {[%clk 0:00:32]} 42. g5 {[%clk 0:01:13.4]} 42... Ke7 {[%clk
0:00:31.4]} 43. Ra6 {[%clk 0:01:13.2]} 43... g6 {[%clk 0:00:31.7]} 44. Kf4
{[%clk 0:01:12.4]} 44... Rb5 {[%clk 0:00:30.9]} 45. e4 {[%clk 0:01:11]} 45...
Rb7 {[%clk 0:00:25.6]} 46. d5 {[%clk 0:01:10.1]} 46... Rd7 {[%clk 0:00:22.8]}
47. Ke5 {[%clk 0:01:10.3]} 47... Rb7 {[%clk 0:00:21.7]} 48. Rc6 {[%clk
0:01:10.6]} 48... Ra7 {[%clk 0:00:20.8]} 49. Rc7+ {[%clk 0:01:07.9]} 1-0

[Event "Early-Titled-Tuesday-Blitz-April-16-2024"]
[Site "Chess.com"]
[Date "2024.04.16"]
[Round "6"]
[White "h4parah5"]
[Black "Kiborg95"]
[Result "1-0"]
[WhiteElo "3008"]
[BlackElo "2860"]
[TimeControl "180+1"]
[EndTime "9:07:38 PDT"]
[Termination "h4parah5 won by resignation"]

1. d4 {[%clk 0:03:00.9]} 1... d6 {[%clk 0:03:00.5]} 2. Nf3 {[%clk 0:03:00.9]}
2... Nf6 {[%clk 0:03:00.7]} 3. c4 {[%clk 0:03:00.9]} 3... Nbd7 {[%clk
0:03:00.2]} 4. Nc3 {[%clk 0:03:01.3]} 4... e5 {[%clk 0:03:00.9]} 5. e4 {[%clk
0:03:01.6]} 5... g6 {[%clk 0:03:01.2]} 6. Be2 {[%clk 0:03:01.4]} 6... Bg7 {[%clk
0:03:02]} 7. O-O {[%clk 0:03:01.7]} 7... O-O {[%clk 0:03:02.8]} 8. Re1 {[%clk
0:03:00.6]} 8... Re8 {[%clk 0:03:00.7]} 9. Bf1 {[%clk 0:02:59.3]} 9... a5 {[%clk
0:02:53.4]} 10. Rb1 {[%clk 0:02:52.6]} 10... b6 {[%clk 0:02:53.7]} 11. h3 {[%clk
0:02:50.3]} 11... exd4 {[%clk 0:02:49.7]} 12. Nxd4 {[%clk 0:02:49.9]} 12... Bb7
{[%clk 0:02:50.6]} 13. f3 {[%clk 0:02:49.5]} 13... d5 {[%clk 0:02:36.1]} 14.
cxd5 {[%clk 0:02:48.4]} 14... Nxd5 {[%clk 0:02:35.6]} 15. Nxd5 {[%clk 0:02:27]}
15... Bxd5 {[%clk 0:02:35.9]} 16. b3 {[%clk 0:02:27.4]} 16... Nc5 {[%clk
0:02:25.2]} 17. Bb2 {[%clk 0:02:25.4]} 17... Bb7 {[%clk 0:02:20]} 18. Qd2 {[%clk
0:02:22.9]} 18... Qh4 {[%clk 0:02:16.5]} 19. Qf2 {[%clk 0:02:13.1]} 19... Qxf2+
{[%clk 0:01:39.2]} 20. Kxf2 {[%clk 0:02:14]} 20... Rad8 {[%clk 0:01:39.5]} 21.
Red1 {[%clk 0:02:11.2]} 21... Rd6 {[%clk 0:01:18.6]} 22. Ba1 {[%clk 0:01:49]}
22... Red8 {[%clk 0:01:14.7]} 23. Ke3 {[%clk 0:01:48.7]} 23... Bh6+ {[%clk
0:00:58.7]} 24. Ke2 {[%clk 0:01:43.6]} 24... Ba6+ {[%clk 0:00:58.3]} 25. Kf2
{[%clk 0:01:33.3]} 25... Bxf1 {[%clk 0:00:58.7]} 26. Rxf1 {[%clk 0:01:32.2]}
26... Rxd4 {[%clk 0:00:50.9]} 27. Bxd4 {[%clk 0:01:33.1]} 27... Rxd4 {[%clk
0:00:51.6]} 28. Rfd1 {[%clk 0:01:32.7]} 28... Rxd1 {[%clk 0:00:48.4]} 29. Rxd1
{[%clk 0:01:33.6]} 29... Bg5 {[%clk 0:00:48.3]} 30. Rd5 {[%clk 0:01:29.6]} 30...
Be7 {[%clk 0:00:47.9]} 31. Ke3 {[%clk 0:01:27.6]} 31... Kf8 {[%clk 0:00:48.4]}
32. f4 {[%clk 0:01:26.8]} 32... Ke8 {[%clk 0:00:47.7]} 33. e5 {[%clk 0:01:27.1]}
33... Ne6 {[%clk 0:00:47.3]} 34. Ke4 {[%clk 0:01:25.8]} 34... c6 {[%clk
0:00:47]} 35. Rd1 {[%clk 0:01:24.8]} 35... Nc5+ {[%clk 0:00:46.7]} 36. Ke3
{[%clk 0:01:22.5]} 36... Na6 {[%clk 0:00:46.6]} 37. Ke4 {[%clk 0:01:21.2]} 37...
Nb4 {[%clk 0:00:38.1]} 38. a4 {[%clk 0:01:18.2]} 38... Nd5 {[%clk 0:00:37.4]}
39. Rc1 {[%clk 0:01:17.1]} 39... Kd7 {[%clk 0:00:36.9]} 40. Rc2 {[%clk
0:01:16.9]} 40... f5+ {[%clk 0:00:31.6]} 41. exf6 {[%clk 0:01:17.3]} 41... Nxf6+
{[%clk 0:00:31.8]} 42. Kf3 {[%clk 0:01:12.3]} 42... Nd5 {[%clk 0:00:28.2]} 43.
Ke4 {[%clk 0:01:11.1]} 43... Bd6 {[%clk 0:00:25]} 44. g3 {[%clk 0:01:11]} 44...
Ne7 {[%clk 0:00:23.1]} 45. Rd2 {[%clk 0:01:06.4]} 45... Ke6 {[%clk 0:00:22.9]}
46. Rc2 {[%clk 0:01:04.1]} 46... b5 {[%clk 0:00:22.3]} 47. g4 {[%clk 0:00:59.4]}
47... bxa4 {[%clk 0:00:19.5]} 48. bxa4 {[%clk 0:01:00]} 48... c5 {[%clk
0:00:20.2]} 49. Rb2 {[%clk 0:00:57.8]} 49... Nd5 {[%clk 0:00:19.2]} 50. f5+
{[%clk 0:00:57.2]} 1-0

[Event "Early-Titled-Tuesday-Blitz-April-16-2024"]
[Site "Chess.com"]
[Date "2024.04.16"]
[Round "6"]
[White "NMChessToImpress"]
[Black "Tsyhanchuk_Stanislav"]
[Result "1-0"]
[WhiteElo "2254"]
[BlackElo "2396"]
[TimeControl "180+1"]
[EndTime "9:07:38 PDT"]
[Termination "NMChessToImpress won by resignation"]

1. e4 {[%clk 0:03:00.9]} 1... e5 {[%clk 0:02:59.6]} 2. Nf3 {[%clk 0:03:00.7]}
2... Nc6 {[%clk 0:03:00.3]} 3. Bb5 {[%clk 0:03:01.3]} 3... a6 {[%clk 0:03:00.1]}
4. Ba4 {[%clk 0:03:01.9]} 4... d6 {[%clk 0:03:00.1]} 5. c3 {[%clk 0:03:00.4]}
5... b5 {[%clk 0:02:35.5]} 6. Bc2 {[%clk 0:02:53.7]} 6... Nf6 {[%clk 0:02:35.6]}
7. O-O {[%clk 0:02:52]} 7... Bg4 {[%clk 0:02:34.7]} 8. d3 {[%clk 0:02:46.1]}
8... Be7 {[%clk 0:02:22.5]} 9. Nbd2 {[%clk 0:02:45.7]} 9... d5 {[%clk
0:02:06.8]} 10. h3 {[%clk 0:02:42.4]} 10... Bh5 {[%clk 0:02:06.4]} 11. Re1
{[%clk 0:02:27.4]} 11... d4 {[%clk 0:02:00.7]} 12. Nf1 {[%clk 0:02:24.7]} 12...
O-O {[%clk 0:01:16.7]} 13. Ng3 {[%clk 0:02:24.3]} 13... Bxf3 {[%clk 0:01:17.2]}
14. Qxf3 {[%clk 0:02:25]} 14... Nd7 {[%clk 0:01:12.8]} 15. Nf5 {[%clk
0:02:15.4]} 15... Nc5 {[%clk 0:01:08.4]} 16. Qg3 {[%clk 0:01:46]} 16... g6
{[%clk 0:01:07.8]} 17. cxd4 {[%clk 0:01:12.6]} 17... Nxd4 {[%clk 0:01:03.8]} 18.
Nxd4 {[%clk 0:01:12.3]} 18... Qxd4 {[%clk 0:01:02.3]} 19. Be3 {[%clk 0:01:09.2]}
19... Qxb2 {[%clk 0:00:52.9]} 20. Rac1 {[%clk 0:01:00.9]} 20... Rfd8 {[%clk
0:00:35.6]} 21. Bb1 {[%clk 0:00:19.3]} 21... Nxd3 {[%clk 0:00:32.5]} 22. Bxd3
{[%clk 0:00:19]} 22... Rxd3 {[%clk 0:00:32.8]} 23. Rxc7 {[%clk 0:00:19.7]} 23...
Bb4 {[%clk 0:00:29.8]} 24. Qf3 {[%clk 0:00:17]} 24... Rf8 {[%clk 0:00:23.4]} 25.
Qf6 {[%clk 0:00:15.5]} 25... Rxe3 {[%clk 0:00:17.9]} 26. Rxe3 {[%clk 0:00:14.3]}
26... Qc1+ {[%clk 0:00:14.7]} 27. Rxc1 {[%clk 0:00:13.2]} 1-0

[Event "Early-Titled-Tuesday-Blitz-April-16-2024"]
[Site "Chess.com"]
[Date "2024.04.16"]
[Round "6"]
[White "PawnEatingZombie"]
[Black "WiktoriaPOL"]
[Result "1/2-1/2"]
[WhiteElo "2249"]
[BlackElo "2389"]
[TimeControl "180+1"]
[EndTime "9:07:41 PDT"]
[Termination "Game drawn by repetition"]

1. e4 {[%clk 0:02:57.1]} 1... c5 {[%clk 0:02:57.7]} 2. c3 {[%clk 0:02:57.6]}
2... Nf6 {[%clk 0:02:57.3]} 3. e5 {[%clk 0:02:57.6]} 3... Nd5 {[%clk 0:02:57.6]}
4. Nf3 {[%clk 0:02:58.2]} 4... Nc6 {[%clk 0:02:57]} 5. Bc4 {[%clk 0:02:58.3]}
5... e6 {[%clk 0:02:56.8]} 6. d4 {[%clk 0:02:57.3]} 6... cxd4 {[%clk 0:02:54.3]}
7. cxd4 {[%clk 0:02:58.2]} 7... d6 {[%clk 0:02:54.9]} 8. O-O {[%clk 0:02:57.6]}
8... Be7 {[%clk 0:02:52.8]} 9. Qe2 {[%clk 0:02:57.3]} 9... O-O {[%clk
0:02:50.6]} 10. Rd1 {[%clk 0:02:57.3]} 10... a6 {[%clk 0:02:41.2]} 11. Nc3
{[%clk 0:02:56.6]} 11... Ncb4 {[%clk 0:02:27]} 12. Nxd5 {[%clk 0:02:20.4]} 12...
Nxd5 {[%clk 0:02:19.1]} 13. Bd3 {[%clk 0:02:20]} 13... Re8 {[%clk 0:02:14.2]}
14. Qe4 {[%clk 0:02:16.1]} 14... g6 {[%clk 0:02:12.7]} 15. h4 {[%clk 0:02:14.7]}
15... h5 {[%clk 0:02:08.6]} 16. Bg5 {[%clk 0:02:08.3]} 16... b5 {[%clk
0:02:03.9]} 17. Bxe7 {[%clk 0:01:51.9]} 17... Qxe7 {[%clk 0:02:02.4]} 18. exd6
{[%clk 0:01:42.4]} 18... Qxd6 {[%clk 0:01:59.2]} 19. Ne5 {[%clk 0:01:42.7]}
19... Bb7 {[%clk 0:01:32.1]} 20. Nxg6 {[%clk 0:01:39.5]} 20... Nc3 {[%clk
0:01:06.4]} 21. Qe3 {[%clk 0:00:40.7]} 21... Nxd1 {[%clk 0:00:42.7]} 22. Qh6
{[%clk 0:00:40]} 22... Qxd4 {[%clk 0:00:16.9]} 23. Ne7+ {[%clk 0:00:04.4]} 23...
Rxe7 {[%clk 0:00:16.1]} 24. Bh7+ {[%clk 0:00:04.6]} 24... Kh8 {[%clk 0:00:16.2]}
25. Bg6+ {[%clk 0:00:04.8]} 25... Kg8 {[%clk 0:00:14.5]} 26. Bh7+ {[%clk
0:00:05]} 26... Kh8 {[%clk 0:00:13.9]} 27. Bg6+ {[%clk 0:00:05.6]} 27... Kg8
{[%clk 0:00:14.3]} 28. Bh7+ {[%clk 0:00:06.1]} 1/2-1/2

[Event "Early-Titled-Tuesday-Blitz-April-16-2024"]
[Site "Chess.com"]
[Date "2024.04.16"]
[Round "6"]
[White "Khromkin"]
[Black "PolandHussars"]
[Result "1/2-1/2"]
[WhiteElo "2383"]
[BlackElo "2599"]
[TimeControl "180+1"]
[EndTime "9:07:43 PDT"]
[Termination "Game drawn by repetition"]

1. d4 {[%clk 0:02:59]} 1... Nf6 {[%clk 0:02:56.2]} 2. c4 {[%clk 0:02:59.5]} 2...
c5 {[%clk 0:02:54.5]} 3. Nf3 {[%clk 0:02:59.9]} 3... cxd4 {[%clk 0:02:51.2]} 4.
Nxd4 {[%clk 0:03:00.8]} 4... e5 {[%clk 0:02:49.9]} 5. Nb5 {[%clk 0:03:01.3]}
5... d5 {[%clk 0:02:49.7]} 6. cxd5 {[%clk 0:03:02.2]} 6... Bc5 {[%clk
0:02:49.7]} 7. N5c3 {[%clk 0:03:02.9]} 7... O-O {[%clk 0:02:49.9]} 8. g3 {[%clk
0:03:03.4]} 8... e4 {[%clk 0:02:50.2]} 9. Bg2 {[%clk 0:03:03.8]} 9... Bf5 {[%clk
0:02:49.8]} 10. O-O {[%clk 0:03:04.2]} 10... Re8 {[%clk 0:02:47.7]} 11. Nd2
{[%clk 0:03:03.6]} 11... a6 {[%clk 0:02:43.9]} 12. a4 {[%clk 0:02:55.8]} 12...
Nbd7 {[%clk 0:02:36.9]} 13. Nc4 {[%clk 0:02:54.2]} 13... Rc8 {[%clk 0:02:33.8]}
14. Be3 {[%clk 0:02:53.8]} 14... Bb4 {[%clk 0:02:28.7]} 15. Qb3 {[%clk
0:02:47.9]} 15... a5 {[%clk 0:02:23]} 16. Rfd1 {[%clk 0:02:40.6]} 16... Nc5
{[%clk 0:02:14.8]} 17. Bxc5 {[%clk 0:02:38.3]} 17... Bxc5 {[%clk 0:02:12.3]} 18.
e3 {[%clk 0:02:31.1]} 18... Ng4 {[%clk 0:01:56]} 19. h3 {[%clk 0:02:23.4]} 19...
Nh6 {[%clk 0:01:55.7]} 20. d6 {[%clk 0:02:16]} 20... Bb4 {[%clk 0:01:42.4]} 21.
Nb5 {[%clk 0:02:07.5]} 21... Rc6 {[%clk 0:01:22.2]} 22. Nd4 {[%clk 0:01:20.1]}
22... Rc5 {[%clk 0:01:17.8]} 23. Nxf5 {[%clk 0:01:04.8]} 23... Nxf5 {[%clk
0:01:18.7]} 24. Rac1 {[%clk 0:00:44.7]} 24... Qg5 {[%clk 0:01:17.5]} 25. d7
{[%clk 0:00:42.4]} 25... Rd8 {[%clk 0:01:16.8]} 26. Nb6 {[%clk 0:00:38.6]} 26...
h5 {[%clk 0:01:07.2]} 27. Rxc5 {[%clk 0:00:31.3]} 27... Bxc5 {[%clk 0:01:08.1]}
28. Nd5 {[%clk 0:00:29.8]} 28... h4 {[%clk 0:00:57.7]} 29. g4 {[%clk 0:00:27.6]}
29... Nd6 {[%clk 0:00:56.4]} 30. Nc3 {[%clk 0:00:24.7]} 30... Qe5 {[%clk
0:00:51.7]} 31. Rd5 {[%clk 0:00:22.7]} 31... Qe6 {[%clk 0:00:51.6]} 32. Qd1
{[%clk 0:00:18.9]} 32... b6 {[%clk 0:00:49.9]} 33. Nb5 {[%clk 0:00:17.2]} 33...
Rxd7 {[%clk 0:00:49.2]} 34. Nxd6 {[%clk 0:00:15.6]} 34... Bxd6 {[%clk
0:00:47.7]} 35. Bxe4 {[%clk 0:00:14.7]} 35... Qxe4 {[%clk 0:00:44.2]} 36. Rxd6
{[%clk 0:00:14.9]} 36... Rxd6 {[%clk 0:00:44.2]} 37. Qxd6 {[%clk 0:00:15.4]}
37... Qb1+ {[%clk 0:00:44.8]} 38. Kg2 {[%clk 0:00:14.2]} 38... Qxb2 {[%clk
0:00:45.4]} 39. Qd8+ {[%clk 0:00:14.3]} 39... Kh7 {[%clk 0:00:46]} 40. Qxh4+
{[%clk 0:00:14.8]} 40... Kg8 {[%clk 0:00:46.6]} 41. Qd8+ {[%clk 0:00:14.8]}
41... Kh7 {[%clk 0:00:47.1]} 42. Qh4+ {[%clk 0:00:15.1]} 42... Kg8 {[%clk
0:00:47.7]} 43. Qd8+ {[%clk 0:00:15.3]} 43... Kh7 {[%clk 0:00:48.3]} 44. Qh4+
{[%clk 0:00:15.4]} 1/2-1/2

[Event "Early-Titled-Tuesday-Blitz-April-16-2024"]
[Site "Chess.com"]
[Date "2024.04.16"]
[Round "6"]
[White "KuzubovYuriy"]
[Black "Revan_2002"]
[Result "1-0"]
[WhiteElo "2922"]
[BlackElo "2722"]
[TimeControl "180+1"]
[EndTime "9:07:47 PDT"]
[Termination "KuzubovYuriy won on time"]

1. d4 {[%clk 0:03:00.9]} 1... Nf6 {[%clk 0:02:58]} 2. c4 {[%clk 0:03:01.4]} 2...
g6 {[%clk 0:02:48.3]} 3. Nc3 {[%clk 0:03:01.1]} 3... Bg7 {[%clk 0:02:49]} 4. e4
{[%clk 0:03:01]} 4... d6 {[%clk 0:02:49.6]} 5. Nge2 {[%clk 0:03:01.7]} 5... O-O
{[%clk 0:02:46.4]} 6. Ng3 {[%clk 0:03:02]} 6... c5 {[%clk 0:02:29.6]} 7. d5
{[%clk 0:03:01.3]} 7... e6 {[%clk 0:02:29.6]} 8. Bd3 {[%clk 0:03:01.6]} 8...
exd5 {[%clk 0:02:29]} 9. cxd5 {[%clk 0:03:02.5]} 9... Re8 {[%clk 0:02:28.9]} 10.
O-O {[%clk 0:03:02]} 10... a6 {[%clk 0:02:29.5]} 11. a4 {[%clk 0:03:01.8]} 11...
Nbd7 {[%clk 0:02:30.1]} 12. Bf4 {[%clk 0:02:53.5]} 12... Ne5 {[%clk 0:02:29.9]}
13. Be2 {[%clk 0:02:49.3]} 13... h5 {[%clk 0:02:29.9]} 14. Bg5 {[%clk
0:02:47.7]} 14... Qb6 {[%clk 0:02:28.5]} 15. Qc1 {[%clk 0:02:27.9]} 15... Nh7
{[%clk 0:02:27]} 16. a5 {[%clk 0:02:28.4]} 16... Qc7 {[%clk 0:02:24.1]} 17. Bh6
{[%clk 0:02:28]} 17... h4 {[%clk 0:02:21.6]} 18. Nh1 {[%clk 0:02:25.6]} 18... f5
{[%clk 0:02:18.8]} 19. Ra3 {[%clk 0:02:02.5]} 19... Qf7 {[%clk 0:01:57.6]} 20.
Bxg7 {[%clk 0:01:59.4]} 20... Kxg7 {[%clk 0:01:57.8]} 21. f4 {[%clk 0:01:56.1]}
21... Nd7 {[%clk 0:01:44.6]} 22. Nf2 {[%clk 0:01:52]} 22... Ndf6 {[%clk
0:01:42.2]} 23. Bf3 {[%clk 0:01:44.1]} 23... Bd7 {[%clk 0:01:29.3]} 24. Re1
{[%clk 0:01:41.2]} 24... Ng4 {[%clk 0:01:25.2]} 25. e5 {[%clk 0:01:27.4]} 25...
dxe5 {[%clk 0:01:19.8]} 26. Bxg4 {[%clk 0:01:27.8]} 26... fxg4 {[%clk
0:01:15.9]} 27. fxe5 {[%clk 0:01:27.8]} 27... g3 {[%clk 0:01:16.5]} 28. hxg3
{[%clk 0:01:27.5]} 28... hxg3 {[%clk 0:01:17.4]} 29. Nh1 {[%clk 0:01:28.2]}
29... Qf5 {[%clk 0:00:54.4]} 30. Nxg3 {[%clk 0:01:21.7]} 30... Qg4 {[%clk
0:00:53.4]} 31. Nce4 {[%clk 0:01:05.2]} 31... Rxe5 {[%clk 0:00:45.7]} 32. Qc3
{[%clk 0:01:04.3]} 32... Re8 {[%clk 0:00:44.7]} 33. Nxc5 {[%clk 0:00:59.3]}
33... Qxg3 {[%clk 0:00:27]} 34. Qxg3 {[%clk 0:01:00.2]} 34... Rxe1+ {[%clk
0:00:27]} 35. Kh2 {[%clk 0:01:00.5]} 35... Nf6 {[%clk 0:00:18.1]} 36. Qc3 {[%clk
0:00:55.5]} 36... R8e3 {[%clk 0:00:10.4]} 37. Qd4 {[%clk 0:00:46.9]} 37... Bf5
{[%clk 0:00:10.2]} 38. Rxe3 {[%clk 0:00:44.7]} 38... Rxe3 {[%clk 0:00:09.1]} 39.
d6 {[%clk 0:00:44.7]} 39... Kf7 {[%clk 0:00:08.9]} 40. d7 {[%clk 0:00:43.9]} 1-0

[Event "Early-Titled-Tuesday-Blitz-April-16-2024"]
[Site "Chess.com"]
[Date "2024.04.16"]
[Round "6"]
[White "Sasha_Solovev_777"]
[Black "dianamirza"]
[Result "1-0"]
[WhiteElo "2191"]
[BlackElo "1945"]
[TimeControl "180+1"]
[EndTime "9:07:50 PDT"]
[Termination "Sasha_Solovev_777 won by resignation"]

1. e4 {[%clk 0:02:57.8]} 1... d5 {[%clk 0:02:46.6]} 2. exd5 {[%clk 0:02:56.6]}
2... Qxd5 {[%clk 0:02:47.5]} 3. Nc3 {[%clk 0:02:56.8]} 3... Qd8 {[%clk
0:02:48.4]} 4. d4 {[%clk 0:02:55.2]} 4... g6 {[%clk 0:02:49.3]} 5. g3 {[%clk
0:02:55.6]} 5... Bg7 {[%clk 0:02:50.2]} 6. Nge2 {[%clk 0:02:51.2]} 6... Nf6
{[%clk 0:02:51.1]} 7. Bg2 {[%clk 0:02:51.4]} 7... O-O {[%clk 0:02:52]} 8. O-O
{[%clk 0:02:51.4]} 8... c6 {[%clk 0:02:52.9]} 9. a4 {[%clk 0:02:47.7]} 9... Nbd7
{[%clk 0:02:50]} 10. h3 {[%clk 0:02:35.2]} 10... Nb6 {[%clk 0:02:49.4]} 11. a5
{[%clk 0:02:34.6]} 11... Nbd5 {[%clk 0:02:49.6]} 12. Nxd5 {[%clk 0:02:34.5]}
12... Nxd5 {[%clk 0:02:50.1]} 13. c3 {[%clk 0:02:31.2]} 13... Bf5 {[%clk
0:02:42.3]} 14. Nf4 {[%clk 0:02:29.3]} 14... Nxf4 {[%clk 0:01:55.7]} 15. Bxf4
{[%clk 0:02:30.2]} 15... Qd7 {[%clk 0:01:53.9]} 16. Kh2 {[%clk 0:02:18.9]} 16...
Rad8 {[%clk 0:01:05]} 17. a6 {[%clk 0:02:13.6]} 17... bxa6 {[%clk 0:00:39.6]}
18. Rxa6 {[%clk 0:02:12.8]} 18... Qb7 {[%clk 0:00:40.3]} 19. Rxc6 {[%clk
0:01:44.8]} 19... Qxb2 {[%clk 0:00:38]} 20. Qc1 {[%clk 0:01:37.5]} 20... Qxc1
{[%clk 0:00:31.3]} 21. Rxc1 {[%clk 0:01:38.4]} 21... Rc8 {[%clk 0:00:26.2]} 22.
Ra1 {[%clk 0:01:16.5]} 22... Rxc6 {[%clk 0:00:19.5]} 23. Bxc6 {[%clk 0:01:17.4]}
23... Rc8 {[%clk 0:00:19.4]} 24. d5 {[%clk 0:00:58.4]} 24... e6 {[%clk
0:00:18.9]} 25. Rxa7 {[%clk 0:00:55.3]} 25... exd5 {[%clk 0:00:18.2]} 26. Bxd5
{[%clk 0:00:56.2]} 26... Bxc3 {[%clk 0:00:16.6]} 27. Rxf7 {[%clk 0:00:45.8]}
27... Kh8 {[%clk 0:00:16.2]} 28. g4 {[%clk 0:00:42.8]} 28... Bd3 {[%clk
0:00:14.1]} 29. Kg3 {[%clk 0:00:40.7]} 29... Rd8 {[%clk 0:00:13.2]} 30. Bb3
{[%clk 0:00:38.7]} 30... Bb5 {[%clk 0:00:10.1]} 31. Bc2 {[%clk 0:00:32.7]} 31...
Ba1 {[%clk 0:00:06.5]} 32. f3 {[%clk 0:00:28.7]} 32... Bc4 {[%clk 0:00:06.8]}
33. Rc7 {[%clk 0:00:27.5]} 33... Bf7 {[%clk 0:00:03.5]} 34. Rxf7 {[%clk
0:00:26.5]} 1-0

[Event "Early-Titled-Tuesday-Blitz-April-16-2024"]
[Site "Chess.com"]
[Date "2024.04.16"]
[Round "6"]
[White "dealshark"]
[Black "osielchesslover2011"]
[Result "0-1"]
[WhiteElo "2327"]
[BlackElo "2096"]
[TimeControl "180+1"]
[EndTime "9:07:54 PDT"]
[Termination "osielchesslover2011 won by checkmate"]

1. e4 {[%clk 0:03:00.9]} 1... c5 {[%clk 0:02:59.6]} 2. Nf3 {[%clk 0:03:00.9]}
2... d6 {[%clk 0:02:58.8]} 3. d4 {[%clk 0:02:59.7]} 3... cxd4 {[%clk 0:02:59.3]}
4. Nxd4 {[%clk 0:02:59.9]} 4... Nf6 {[%clk 0:03:00]} 5. Nc3 {[%clk 0:03:00.2]}
5... a6 {[%clk 0:03:00.6]} 6. Be3 {[%clk 0:03:00.2]} 6... e6 {[%clk 0:03:01]} 7.
f3 {[%clk 0:02:58.2]} 7... b5 {[%clk 0:03:01.4]} 8. Qd2 {[%clk 0:02:52.4]} 8...
b4 {[%clk 0:03:01.5]} 9. Nce2 {[%clk 0:02:48.2]} 9... e5 {[%clk 0:03:00.6]} 10.
Nb3 {[%clk 0:02:36.3]} 10... d5 {[%clk 0:02:59.6]} 11. exd5 {[%clk 0:02:32.2]}
11... Qxd5 {[%clk 0:03:00]} 12. O-O-O {[%clk 0:02:23.5]} 12... Be6 {[%clk
0:02:57.6]} 13. Ng3 {[%clk 0:02:07.9]} 13... Nbd7 {[%clk 0:02:38.7]} 14. Bd3
{[%clk 0:01:44.6]} 14... a5 {[%clk 0:02:36.1]} 15. Ne4 {[%clk 0:01:23.4]} 15...
a4 {[%clk 0:02:28.3]} 16. Nxf6+ {[%clk 0:01:06.6]} 16... Nxf6 {[%clk 0:02:24.2]}
17. Be4 {[%clk 0:00:50.6]} 17... Nxe4 {[%clk 0:01:40.1]} 18. fxe4 {[%clk
0:00:42.7]} 18... axb3 {[%clk 0:00:42.4]} 19. exd5 {[%clk 0:00:29]} 19... bxa2
{[%clk 0:00:42.2]} 20. Qd3 {[%clk 0:00:26.2]} 20... a1=Q+ {[%clk 0:00:31.6]} 21.
Kd2 {[%clk 0:00:26.6]} 21... Qxb2 {[%clk 0:00:27.5]} 22. Qb5+ {[%clk 0:00:24.2]}
22... Bd7 {[%clk 0:00:23.2]} 23. Qb7 {[%clk 0:00:16.1]} 23... Rc8 {[%clk
0:00:20.2]} 24. Ke2 {[%clk 0:00:13.1]} 24... Qxc2+ {[%clk 0:00:15.6]} 25. Rd2
{[%clk 0:00:12.2]} 25... Bg4+ {[%clk 0:00:13.7]} 26. Kf2 {[%clk 0:00:08.1]}
26... Qf5+ {[%clk 0:00:13.5]} 27. Kg3 {[%clk 0:00:08.6]} 27... Bd6 {[%clk
0:00:10.4]} 28. Qb5+ {[%clk 0:00:08.7]} 28... Kf8 {[%clk 0:00:09.8]} 29. h4
{[%clk 0:00:07.4]} 29... e4+ {[%clk 0:00:09.5]} 30. Bf4 {[%clk 0:00:07.4]} 30...
Qxf4# {[%clk 0:00:09.6]} 0-1